[Event "10th Sharjah Cup Women 2020"]
[Site "Sharjah"]
[Date "2020.01.07"]
[Round "4.15"]
[White "Drljevic, Ljilja"]
[Black "Rayan, Mohammad Ali Hassan"]
[Result "1-0"]
[ECO "A00"]
[WhiteElo "2193"]
[BlackElo "1473"]
[Annotator "ChessBase"]
[PlyCount "59"]
[EventDate "2020.01.04"]
[EventType "swiss"]
[EventCountry "UAE"]
[SourceTitle "playchess.com"]
[Source "ChessBase"]
[SourceQuality "1"]
[TimeControl "5400+30"]

1. g3 {[%emt 0:01:06]} d5 {[%emt 0:01:33]} 2. Bg2 {[%emt 0:00:09]} e5 {[%emt 0:01:09]} 3. d3 {[%emt 0:01:49]} Be6 {[%emt 0:02:58]} 4. Nd2 {[%emt 0:02:25]} Nc6 {[%emt 0:04:58]} 5. Ngf3 {[%emt 0:05:55]} f6 {[%emt 0:02:34]} 6. c3 {[%emt 0:01:09]} Qd7 {[%emt 0:01:20]} 7. b4 {[%emt 0:02:25]} Nge7 {[%emt 0:28:16]} 8. b5 {[%emt 0:08:13]} Nd8 {[%emt 0:02:02]} 9. a4 {[%emt 0:00:49]} c6 {[%emt 0:02:59]} 10. bxc6 {[%emt 0:01:17]} Ndxc6 {[%emt 0:00:32]} 11. Nb3 {[%emt 0:10:59]} Ng6 {[%emt 0:01:54]} 12. h4 {[%emt 0:00:34]} h5 {[%emt 0:01:04]} 13. Be3 {[%emt 0:00:47]} Qc8 {[%emt 0:11:33]} 14. a5 {[%emt 0:13:45]} Bd6 {[%emt 0:09:39]} 15. Bc5 {[%emt 0:05:30]} Bc7 {[%emt 0:02:18]} 16. Nfd2 {[%emt 0:02:00]} Nxa5 {[%emt 0:08:28]} 17. Nxa5 {[%emt 0:04:51]} b6 {[%emt 0:01:40]} 18. Nab3 {[%emt 0:16:17]} bxc5 {[%emt 0:01:54]} 19. Nxc5 {[%emt 0:00:02]} Bf7 {[%emt 0:01:16]} 20. Bh3 {[%emt 0:06:18]} Qd8 {[%emt 0:03:06]} 21. Ra6 {[%emt 0:03:22]} Bb6 {[%emt 0:03:02]} 22. Qa4+ {[%emt 0:02:17]} Ke7 {[%emt 0:01:16]} 23. Nb7 {[%emt 0:03:59]} Qc7 {[%emt 0:01:09]} 24. Qa3+ {[%emt 0:01:23]} Ke8 {[%emt 0:00:15]} 25. Nd6+ {[%emt 0:00:31]} Kd8 {[%emt 0:00:57]} 26. Nxf7+ {[%emt 0:00:40]} Ke8 {[%emt 0:01:25]} 27. Nxh8 {[%emt 0:01:15]} Nxh8 {[%emt 0:00:01]} 28. O-O {[%emt 0:00:44]} Bc5 {[%emt 0:02:41]} 29. Qa4+ {[%emt 0:00:21]} Ke7 {[%emt 0:01:53]} 30. Rc6 {[%emt 0:00:19]} 1-0

[Event "10th Sharjah Cup Women 2020"]
[Site "Sharjah"]
[Date "2020.01.07"]
[Round "4.16"]
[White "Babayan, Armine"]
[Black "Fatima, Al Wahabi"]
[Result "1-0"]
[ECO "C99"]
[WhiteElo "2186"]
[BlackElo "1386"]
[Annotator "ChessBase"]
[PlyCount "61"]
[EventDate "2020.01.04"]
[EventType "swiss"]
[EventCountry "UAE"]
[SourceTitle "playchess.com"]
[Source "ChessBase"]
[SourceQuality "1"]
[TimeControl "5400+30"]

1. e4 {[%emt 0:01:15]} e5 {[%emt 0:00:00]} 2. Nf3 {[%emt 0:00:08]} Nc6 {[%emt 0:00:00]} 3. Bb5 {[%emt 0:00:06]} a6 {[%emt 0:00:00]} 4. Ba4 {[%emt 0:00:03]} Nf6 {[%emt 0:02:05]} 5. O-O {[%emt 0:00:09]} Be7 {[%emt 0:00:17]} 6. Re1 {[%emt 0:01:17]} b5 {[%emt 0:01:57]} 7. Bb3 {[%emt 0:00:07]} O-O {[%emt 0:00:09]} 8. h3 {[%emt 0:01:02]} d6 {[%emt 0:01:06]} 9. c3 {[%emt 0:00:16]} Na5 {[%emt 0:00:33]} 10. Bc2 {[%emt 0:00:06]} c5 {[%emt 0:00:09]} 11. d4 {[%emt 0:00:06]} Qc7 {[%emt 0:10:41]} 12. Nbd2 {[%emt 0:00:34]} cxd4 {[%emt 0:07:05]} 13. cxd4 {[%emt 0:00:18]} Bd7 {[%emt 0:02:52]} 14. Nf1 {[%emt 0:00:42]} Nc6 {[%emt 0:02:20]} 15. Ne3 {[%emt 0:08:22]} Rac8 {[%emt 0:08:41]} 16. a3 {[%emt 0:17:31]} Rfe8 {[%emt 0:11:08]} 17. Qd3 {[%emt 0:32:33]} Bf8 {[%emt 0:10:18]} 18. Bd2 {[%emt 0:05:43]} exd4 {[%emt 0:19:20]} 19. Nd5 {[%emt 0:02:12]} Nxd5 {[%emt 0:09:52]} 20. exd5 {[%emt 0:00:08]} g6 {[%emt 0:00:15]} 21. dxc6 {[%emt 0:00:21]} Bf5 {[%emt 0:04:06]} 22. Qb3 {[%emt 0:00:39]} Be6 {[%emt 0:04:19]} 23. Qb4 {[%emt 0:01:37]} Qxc6 {[%emt 0:03:36]} 24. Nxd4 Qb7 {[%emt 0:00:35]} 25. Nxe6 {[%emt 0:02:13]} fxe6 {[%emt 0:00:06]} 26. Bb3 {[%emt 0:00:25]} d5 {[%emt 0:00:43]} 27. Qg4 {[%emt 0:00:19]} Qf7 {[%emt 0:00:23]} 28. Re2 {[%emt 0:00:57]} Bc5 {[%emt 0:00:44]} 29. Rae1 {[%emt 0:00:36]} Rf8 {[%emt 0:00:13]} 30. Qg3 {[%emt 0:01:05]} Rce8 {[%emt 0:00:35]} 31. Bh6 {[%emt 0:01:13]} 1-0

[Event "10th Sharjah Cup Women 2020"]
[Site "Sharjah"]
[Date "2020.01.07"]
[Round "4.17"]
[White "Samaganova, Alexandra"]
[Black "Al-Moaamari, Mozah"]
[Result "1-0"]
[ECO "A13"]
[WhiteElo "2008"]
[BlackElo "1395"]
[Annotator "NA"]
[PlyCount "90"]
[EventDate "2020.01.04"]
[EventType "swiss"]
[EventCountry "UAE"]
[SourceTitle "playchess.com"]
[Source "ChessBase"]
[SourceQuality "1"]
[TimeControl "5400+30"]

1. c4 e6 2. Nc3 d5 3. e3 Nf6 4. Nf3 b6 5. d4 Bb7 6. Bd3 dxc4 {E14: Queen's Indian: Classical Variation (4 e3)} (6... Bd6 7. O-O dxc4 8. Bxc4 O-O 9. Nb5 Be7 10. b3 Nbd7 11. Bb2 a6 12. Nc3 b5 13. Be2 c5 14. Rc1 Qb6 15. dxc5 Nxc5 {0-1 (35) Cori,J (2686)-Vidit,S (2703) Biel 2019}) 7. Bxc4 Nbd7 8. O-O Be7 9. Re1 Ne4 10. Nxe4 Bxe4 11. Bd2 O-O 12. Bc3 Nf6 $146 ({Predecessor:} 12... Bd6 13. Qe2 Qf6 14. Rad1 Qh6 15. h3 {½-½ (33) Louie,R (1677)-Flitney,A (1959) Queenstown 2012}) 13. Bd3 Bb7 14. Qe2 Nd5 15. Ba6 Bxa6 16. Qxa6 Qc8 17. Qe2 c5 18. Rac1 cxd4 19. Bxd4 Qb7 20. Ne5 Nf6 21. Nc6 Rac8 22. Qf3 Nd5 23. Nxe7+ Qxe7 24. a3 Qd7 25. Qg4 f6 26. e4 Ne7 $14 (26... h5 $11 27. Qf3 Nb4) 27. Bc3 Ng6 28. Rcd1 Qf7 29. Rd6 Rfe8 30. Red1 Qe7 $2 (30... Re7 $14) 31. Rd7 Qf8 32. Bb4 Ne7 33. Qxe6+ Qf7 34. Qg4 h6 35. Rxe7 Rxe7 36. Qxc8+ Re8 37. Qc6 Qg6 38. Qd5+ Kh8 39. f3 Rc8 40. Bc3 h5 41. Qf5 Qe8 42. Rd5 Rc7 43. Qxh5+ Qxh5 44. Rxh5+ Kg8 45. Rd5 Kf7 1-0

[Event "10th Sharjah Cup Women 2020"]
[Site "Sharjah"]
[Date "2020.01.07"]
[Round "4.18"]
[White "Amal, Fadel S M Alshamsi"]
[Black "Boshra, Alshaeby"]
[Result "0-1"]
[ECO "B35"]
[WhiteElo "1403"]
[BlackElo "1979"]
[Annotator "NA"]
[PlyCount "108"]
[EventDate "2020.01.04"]
[EventType "swiss"]
[EventCountry "UAE"]
[SourceTitle "playchess.com"]
[Source "ChessBase"]
[SourceQuality "1"]
[TimeControl "5400+30"]

1. e4 {[%emt 0:00:00]} c5 {[%emt 0:00:00]} 2. Nf3 {[%emt 0:00:00]} g6 {[%emt 0:00:00]} 3. d4 {[%emt 0:00:00]} cxd4 {[%emt 0:00:00]} 4. Nxd4 {[%emt 0:00:00]} Bg7 {[%emt 0:00:18]} 5. Nc3 {[%emt 0:00:00]} Nc6 {[%emt 0:00:06]} 6. Be3 {[%emt 0:00:00]} Nf6 {[%emt 0:00:05]} 7. Bc4 {[%emt 0:00:48]} Qa5 {[%emt 0:00:07]} 8. O-O {[%emt 0:13:11]} O-O {[%emt 0:00:04]} 9. Bb3 {[%emt 0:01:12]} d6 {[%emt 0:00:43]} 10. h3 {[%emt 0:00:19]} Bd7 {[%emt 0:00:49]} 11. Re1 {[%emt 0:16:04]} Rac8 {[%emt 0:04:14]} 12. f4 {[%emt 0:09:17] B35: Sicilian: Accelerated Dragon with 5 Nc3: main line} (12. Qd2 Qa6 13. f4 Rfd8 14. Rad1 b5 15. Ndxb5 Nxe4 16. Qd5 Nf6 17. Qxf7+ Kh8 18. Qc4 Qb7 19. Qe2 Rf8 {½-½ (47) Sasikiran,K (2669)-Matlakov,M (2714) Khanty-Mansiysk 2017}) 12... Rfe8 {[%emt 0:20:48]} 13. g4 $146 {[%emt 0:18:48]} ({Predecessor:} 13. Nf3 $14 Qh5 14. Ng5 Rf8 15. Qxh5 Nxh5 16. g4 Bxc3 17. bxc3 Nf6 18. Bf2 h6 19. Nxf7 Rxf7 {1-0 (45) Pikula,D (2471)-Kiremitciyan,A (2307) Veliko Gradiste 2018}) 13... Nxd4 {[%emt 0:17:14]} 14. Bxd4 {[%emt 0:00:42]} e5 {[%emt 0:00:26]} 15. fxe5 {[%emt 0:04:03]} dxe5 {[%emt 0:00:05]} 16. Be3 {[%emt 0:01:53]} Be6 {[%emt 0:09:35]} 17. Qf3 {[%emt 0:10:55]} b5 {[%emt 0:13:29]} 18. Nd5 {[%emt 0:06:30]} Nd7 {[%emt 0:13:01]} 19. Qf2 {[%emt 0:01:02]} a6 {[%emt 0:08:08]} 20. Rad1 {[%emt 0:03:33]} b4 {[%emt 0:03:03]} 21. Bd2 {[%emt 0:06:40]} Bf8 {[%emt 0:01:13]} 22. Be3 {[%emt 0:03:07]} Qb5 {[%emt 0:04:08]} 23. Qe2 {[%emt 0:02:33]} Qxe2 {[%emt 0:01:55]} 24. Rxe2 Kg7 25. Ba4 {[%emt 0:01:02]} Red8 {[%emt 0:01:53]} 26. Red2 {[%emt 0:00:47]} Nc5 {[%emt 0:00:30]} 27. Bxc5 {[%emt 0:00:25]} Bxc5+ {[%emt 0:00:01]} 28. Kg2 {[%emt 0:00:21]} a5 {[%emt 0:01:21]} 29. Kf3 {[%emt 0:00:16]} h6 {[%emt 0:00:34]} 30. Nc7 {[%emt 0:00:27]} Bxg4+ {[%emt 0:00:33]} 31. hxg4 {[%emt 0:00:01]} Rxd2 {[%emt 0:00:00]} 32. Rxd2 {[%emt 0:00:36]} Rxc7 {[%emt 0:00:04]} 33. Rd5 {[%emt 0:00:16]} Bd4 {[%emt 0:00:36]} 34. Rxa5 {[%emt 0:01:06]} Bxb2 {[%emt 0:00:05]} 35. Rd5 $17 {[%emt 0:00:32]} Kf6 {[%emt 0:01:20]} 36. Rd6+ {[%emt 0:00:50]} Ke7 {[%emt 0:00:38]} 37. Rd5 {[%emt 0:00:25]} Bd4 {[%emt 0:00:16]} 38. Rb5 {[%emt 0:00:45]} Bc3 {[%emt 0:00:08]} 39. Rd5 {[%emt 0:00:03]} Bd4 {[%emt 0:01:00]} 40. Rb5 {[%emt 0:00:15]} Bc5 {[%emt 0:00:53]} 41. Rb8 {[%emt 0:00:19]} Kf6 {[%emt 0:00:19]} 42. Rh8 {[%emt 0:00:36]} Kg5 {[%emt 0:00:24]} 43. Bb3 {[%emt 0:00:53]} Bd4 {[%emt 0:00:37]} 44. Rf8 {[%emt 0:00:35]} f6 {[%emt 0:00:23]} 45. Kg2 {[%emt 0:00:34]} Rc3 {[%emt 0:00:35]} 46. Rb8 $2 {[%emt 0:00:15]} (46. Rg8) 46... Re3 {[%emt 0:00:44]} 47. Rxb4 {[%emt 0:00:18]} Rxe4 {[%emt 0:00:28]} 48. Be6 {[%emt 0:01:03]} Re2+ {[%emt 0:00:07]} 49. Kf3 {[%emt 0:00:31]} Rxc2 {[%emt 0:00:14]} 50. a4 {[%emt 0:00:08]} f5 {[%emt 0:00:45]} 51. gxf5 {[%emt 0:00:15]} gxf5 {[%emt 0:00:05]} 52. Rb1 {[%emt 0:00:44]} e4+ {[%emt 0:00:14]} 53. Kg3 {[%emt 0:00:06]} Be5+ {[%emt 0:00:09]} 54. Kh3 {[%emt 0:00:12]} Rh2# 0-1

[Event "10th Sharjah Cup Women 2020"]
[Site "Sharjah"]
[Date "2020.01.07"]
[Round "4.19"]
[White "Al-Hammadi, Maryam Hussein"]
[Black "Kyrkjebo, Hanna B."]
[Result "0-1"]
[ECO "C77"]
[WhiteElo "1387"]
[BlackElo "1963"]
[Annotator "NA"]
[PlyCount "94"]
[EventDate "2020.01.04"]
[EventType "swiss"]
[EventCountry "UAE"]
[SourceTitle "playchess.com"]
[Source "ChessBase"]
[SourceQuality "1"]
[TimeControl "5400+30"]

1. e4 {[%emt 0:00:00]} e5 {[%emt 0:01:40]} 2. Nf3 {[%emt 0:00:00]} Nc6 {[%emt 0:00:05]} 3. Bb5 {[%emt 0:00:00]} a6 {[%emt 0:00:08]} 4. Ba4 {[%emt 0:00:14]} Nf6 {[%emt 0:00:20]} 5. Qe2 {[%emt 0:00:16]} b5 {[%emt 0:00:18]} 6. Bb3 {[%emt 0:00:08]} Bc5 {[%emt 0:00:14]} 7. a4 {[%emt 0:02:20]} Rb8 {[%emt 0:01:49]} 8. axb5 {[%emt 0:00:33]} axb5 {[%emt 0:00:18]} 9. d3 {[%emt 0:02:37] C77: Ruy Lopez: 3...a6 4 Ba4 Nf6, unusual lines} h6 {[%emt 0:02:10]} (9... d6 10. Be3 Bxe3 11. fxe3 Ne7 12. O-O Ng6 13. Nc3 Be6 14. Bxe6 fxe6 15. b4 O-O 16. Ra6 Qc8 17. Rfa1 c5 18. Rxd6 cxb4 19. Nd1 Qc5 20. Rda6 Rbc8 21. R6a2 Ne7 22. Nf2 {½-½ (22) Shyam,S (2532)-Sasikiran,K (2661) Sitges 2016}) 10. Be3 {[%emt 0:03:28]} Bb6 {[%emt 0:08:01]} 11. c3 {[%emt 0:04:30]} d6 {[%emt 0:10:39]} 12. Nbd2 {[%emt 0:03:00]} O-O {[%emt 0:01:19]} 13. O-O {[%emt 0:03:34]} Bg4 {[%emt 0:02:13]} 14. h3 {[%emt 0:01:56]} Bd7 $146 {[%emt 0:04:37]} ({Predecessor:} 14... Bh5 15. Rfe1 Bg6 16. Nf1 Nh5 {0-1 (49) Amin,B (2166)-Jenni,F (2461) Biel 2001}) 15. Rfd1 {[%emt 0:02:50]} Re8 {[%emt 0:03:16]} 16. Nf1 {[%emt 0:02:13]} b4 {[%emt 0:02:31]} 17. c4 {[%emt 0:07:17]} Bxe3 {[%emt 0:10:59]} 18. Nxe3 {[%emt 0:01:58]} Ne7 {[%emt 0:01:18]} 19. Kh2 {[%emt 0:04:58]} Ng6 {[%emt 0:01:57]} 20. g3 {[%emt 0:02:05]} Qc8 {[%emt 0:00:39]} 21. Ng1 {[%emt 0:00:42]} c6 {[%emt 0:01:33]} 22. Rf1 {[%emt 0:07:50]} Ra8 {[%emt 0:05:08]} 23. Qd2 {[%emt 0:03:54]} Rxa1 {[%emt 0:04:30]} 24. Rxa1 {[%emt 0:00:19]} Qb7 {[%emt 0:00:31]} 25. Ne2 {[%emt 0:03:00]} Ne7 $11 {[%emt 0:04:51]} 26. f4 {[%emt 0:08:18]} exf4 {[%emt 0:05:39]} 27. Nxf4 {[%emt 0:00:26]} c5 {[%emt 0:02:29]} 28. Qd1 {[%emt 0:04:03]} Ra8 {[%emt 0:03:01]} 29. Ba4 {[%emt 0:08:09]} Qa7 {[%emt 0:04:08]} 30. b3 {[%emt 0:01:20]} Qb8 {[%emt 0:05:52]} 31. Bxd7 {[%emt 0:01:11]} Nxd7 {[%emt 0:00:27]} 32. Nfd5 {[%emt 0:03:20]} Nxd5 {[%emt 0:03:51]} 33. Nxd5 {[%emt 0:00:10]} Ne5 {[%emt 0:01:04]} 34. Rxa8 {[%emt 0:04:07]} Qxa8 {[%emt 0:00:06]} 35. Qb1 {[%emt 0:00:19]} Qa3 {[%emt 0:03:04]} 36. Kg2 {[%emt 0:00:52]} Nc6 {[%emt 0:00:32]} 37. Qd1 {[%emt 0:10:22]} Nd4 {[%emt 0:01:09]} 38. Qg4 {[%emt 0:02:16]} Qb2+ {[%emt 0:01:54]} 39. Kf1 {[%emt 0:00:19]} Qc1+ {[%emt 0:00:30]} 40. Kf2 {[%emt 0:00:56]} Qd2+ {[%emt 0:00:28]} 41. Kf1 {[%emt 0:01:19]} Qxd3+ {[%emt 0:00:36]} 42. Kf2 {[%emt 0:00:18]} Qd2+ {[%emt 0:02:34]} 43. Kf1 {[%emt 0:00:13]} Ne6 {[%emt 0:02:15]} 44. Nc7 {[%emt 0:03:25]} Qg5 {[%emt 0:00:32]} 45. Qxg5 {[%emt 0:00:29]} Nxg5 {[%emt 0:00:10]} 46. e5 {[%emt 0:00:33]} dxe5 {[%emt 0:00:15]} 47. h4 {[%emt 0:00:25]} Ne4 {[%emt 0:00:16]} 0-1

[Event "10th Sharjah Cup Women 2020"]
[Site "Sharjah"]
[Date "2020.01.07"]
[Round "4.20"]
[White "Shanya, Mishra"]
[Black "Aysha Nasser H Alshamsi"]
[Result "1-0"]
[ECO "E06"]
[WhiteElo "1907"]
[BlackElo "1303"]
[Annotator "NA"]
[PlyCount "81"]
[EventDate "2020.01.04"]
[EventType "swiss"]
[EventCountry "UAE"]
[SourceTitle "playchess.com"]
[Source "ChessBase"]
[SourceQuality "1"]
[TimeControl "5400+30"]

{[%evp 8,53,26,23,18,19,27,32767,59,55,65,45,68,0,30,32767,32767,32767,32767,32767,64,83,111,64,78,75,84,68,88,80,85,34,11,19,3,-24,79,40,49,41,63,0,87,83,93,77,139,45]} 1. d4 {[%emt 0:00:00]} Nf6 {[%emt 0:00:00]} 2. c4 {[%emt 0:00:00]} e6 {[%emt 0:00:00]} 3. g3 {[%emt 0:00:04]} d5 {[%emt 0:00:03]} 4. Bg2 {[%emt 0:00:11]} Be7 {[%emt 0:00:15]} 5. Nf3 {[%emt 0:00:12]} O-O {[%emt 0:00:23]} 6. O-O {[%emt 0:00:11]} dxc4 {[%emt 0:01:02]} 7. Nbd2 {[%emt 0:01:48]} Nc6 {[%emt 0:13:56] E05: Open Catalan: 5 Nf3 Be7} ({Black should try} 7... b5 $1 $15) 8. Nxc4 {[%emt 0:01:16]} a5 $146 {[%emt 0:10:08]} ({Predecessor:} 8... Rb8 9. a3 b5 10. Nfe5 Nxe5 11. Nxe5 Bb7 12. Bxb7 Rxb7 13. Nc6 Qd7 14. Qc2 Rb6 15. Nxe7+ Qxe7 {1-0 (53) Gulko,B (2533)-Zatonskih,A (2473) Rockville 2013}) 9. Bf4 {[%emt 0:06:05]} Nd5 {[%emt 0:05:52]} 10. Bc1 {[%emt 0:00:44]} (10. Bd2 $14) 10... b5 {[%emt 0:08:52]} 11. Ne3 {[%emt 0:05:11]} Bb7 {[%emt 0:01:55]} 12. Nxd5 {[%emt 0:00:45]} exd5 {[%emt 0:01:08]} 13. Bf4 {[%emt 0:00:30]} Bf6 {[%emt 0:06:17]} 14. Rc1 {[%emt 0:00:56]} h6 {[%emt 0:02:09]} 15. h4 {[%emt 0:03:39]} Be7 {[%emt 0:07:08]} 16. a3 {[%emt 0:11:22]} Bd6 {[%emt 0:02:59]} 17. Ne5 {[%emt 0:00:42]} Nxe5 {[%emt 0:00:53]} 18. dxe5 {[%emt 0:01:07]} Be7 {[%emt 0:00:31]} 19. e6 {[%emt 0:00:23]} c5 $1 {[%emt 0:02:45]} 20. exf7+ {[%emt 0:01:16]} Rxf7 {[%emt 0:00:54]} 21. Qb3 {[%emt 0:00:42]} b4 (21... Qd7 $1 $15 {keeps the upper hand.}) 22. Rfd1 {[%emt 0:04:46]} a4 {[%emt 0:05:29]} 23. Qc2 {[%emt 0:01:51]} b3 {[%emt 0:06:06]} 24. Qd2 {[%emt 0:00:26]} (24. Qg6 $14) 24... Rf5 {[%emt 0:04:29]} (24... Qe8 $1 $11 {remains equal.}) 25. Bh3 {[%emt 0:01:12]} Rf6 {[%emt 0:01:41]} (25... Rf8 $11) 26. Be5 {[%emt 0:00:17]} Rb6 {[%emt 0:00:41]} 27. Qf4 $14 {[%emt 0:02:05]} (27. e3 $16) 27... Qf8 {[%emt 0:01:46]} 28. Bf5 {[%emt 0:01:26]} g6 {[%emt 0:11:34]} 29. Bd7 {[%emt 0:01:48]} Qxf4 {[%emt 0:00:47]} 30. gxf4 {[%emt 0:00:29]} Kh7 {[%emt 0:04:39]} 31. h5 {[%emt 0:00:18]} g5 {[%emt 0:00:34]} 32. Bf5+ {[%emt 0:02:34]} Kg8 {[%emt 0:00:10]} 33. fxg5 {[%emt 0:00:21]} hxg5 {[%emt 0:00:11]} 34. f4 {[%emt 0:00:35]} gxf4 {[%emt 0:00:31]} 35. Kh2 {[%emt 0:00:28]} Rf8 {[%emt 0:00:36]} 36. Rg1+ {[%emt 0:00:15]} Kf7 {[%emt 0:00:19]} 37. Bg6+ {[%emt 0:03:54]} Ke6 {[%emt 0:00:17]} 38. Bg7 {[%emt 0:00:07]} Rg8 {[%emt 0:00:33]} 39. h6 {[%emt 0:00:05]} Bf6 {[%emt 0:00:48]} 40. Bh7 {[%emt 0:01:13]} Rc8 {[%emt 0:00:27]} 41. Bxf6 {[%emt 0:00:24]} 1-0

[Event "10th Sharjah Cup Women 2020"]
[Site "Sharjah"]
[Date "2020.01.07"]
[Round "4.21"]
[White "Khalil, Hanan"]
[Black "Kyrkjebo, Marte B."]
[Result "0-1"]
[ECO "C77"]
[WhiteElo "1360"]
[BlackElo "1880"]
[Annotator "NA"]
[PlyCount "70"]
[EventDate "2020.01.04"]
[EventType "swiss"]
[EventCountry "UAE"]
[SourceTitle "playchess.com"]
[Source "ChessBase"]
[SourceQuality "1"]
[TimeControl "5400+30"]

1. e4 e5 {[%emt 0:01:29]} 2. Nf3 {[%emt 0:00:00]} Nc6 {[%emt 0:00:13]} 3. Bb5 a6 {[%emt 0:00:20]} 4. Ba4 {[%emt 0:00:01]} Nf6 {[%emt 0:00:13]} 5. d3 {[%emt 0:00:12]} b5 {[%emt 0:00:35]} 6. Bb3 {[%emt 0:00:10]} Bc5 {[%emt 0:00:48]} 7. c3 {[%emt 0:00:35]} d6 {[%emt 0:01:13]} 8. O-O {[%emt 0:00:11]} h6 {[%emt 0:00:50]} 9. Nbd2 {[%emt 0:03:09] C78: Ruy Lopez: Archangelsk and Möller Defences} O-O {[%emt 0:00:59]} 10. Re1 {[%emt 0:01:38]} Bb6 {[%emt 0:01:59]} (10... Ne7 11. a4 b4 12. d4 bxc3 13. bxc3 exd4 14. cxd4 Bb4 15. Re3 Ng6 16. h3 a5 {0-1 (65) Zhigalko,S (2638)-Giri,A (2762) Heraklio 2017}) 11. h3 {[%emt 0:01:30]} Ne7 {[%emt 0:07:05]} 12. Nf1 {[%emt 0:01:19]} Ng6 {[%emt 0:02:12]} 13. Ng3 {[%emt 0:08:43]} Be6 {[%emt 0:02:56]} 14. Bc2 {[%emt 0:02:38]} Re8 {[%emt 0:06:33]} 15. a4 {[%emt 0:06:55]} d5 {[%emt 0:10:20]} 16. d4 $146 {[%emt 0:15:44]} ({Predecessor:} 16. Qe2 dxe4 17. dxe4 {½-½ (48) Mustaps,M (2267)-Krustkalns,K (2174) Liepaja 2014}) 16... exd4 {[%emt 0:25:07]} 17. Nxd4 {[%emt 0:01:26]} (17. e5 $16 Nd7 18. cxd4) 17... Nxe4 {[%emt 0:06:08]} 18. Nxe4 {[%emt 0:03:37]} ({Don't play} 18. axb5 Nxg3 19. Bxg6 Bxd4 $15) 18... dxe4 {[%emt 0:00:25]} 19. Bxe4 {[%emt 0:00:10]} Bd5 {[%emt 0:03:48]} 20. Bxd5 {[%emt 0:05:53]} Qxd5 {[%emt 0:00:10]} 21. Rxe8+ {[%emt 0:00:38]} Rxe8 {[%emt 0:00:12]} 22. Be3 $17 {[%emt 0:01:17]} Rd8 {[%emt 0:04:21]} 23. Qg4 {[%emt 0:05:30]} Kh7 {[%emt 0:05:31]} 24. axb5 {[%emt 0:04:52]} axb5 {[%emt 0:00:27]} 25. Qe2 {[%emt 0:02:48]} c6 {[%emt 0:02:09]} 26. Ra6 {[%emt 0:01:52]} Rb8 {[%emt 0:02:01]} 27. Qc2 {[%emt 0:07:52]} Kg8 {[%emt 0:03:27]} 28. Nf5 {[%emt 0:03:08]} Bc7 {[%emt 0:02:37]} 29. Ra7 {[%emt 0:02:43]} Be5 {[%emt 0:01:05]} 30. Bd4 {[%emt 0:07:52]} Bxd4 {[%emt 0:02:50]} 31. Nxd4 {[%emt 0:00:05]} Nf4 {[%emt 0:00:41]} 32. Nf3 {[%emt 0:00:18]} Nxh3+ {[%emt 0:01:11]} 33. gxh3 {[%emt 0:00:56]} Qxf3 {[%emt 0:00:09]} 34. Kh2 {[%emt 0:00:08]} Re8 {[%emt 0:01:01]} 35. Rc7 {[%emt 0:00:29]} Qf4+ {[%emt 0:00:20]} 0-1

[Event "10th Sharjah Cup Women 2020"]
[Site "Sharjah"]
[Date "2020.01.07"]
[Round "4.22"]
[White "Al Maamari, Wafia Darwish"]
[Black "alyazia Humaid alhasani"]
[Result "1-0"]
[ECO "C11"]
[WhiteElo "1866"]
[BlackElo "1119"]
[Annotator "NA RC"]
[PlyCount "31"]
[EventDate "2020.01.04"]
[EventType "swiss"]
[EventCountry "UAE"]
[SourceTitle "playchess.com"]
[Source "ChessBase"]
[SourceQuality "1"]
[TimeControl "5400+30"]

{[%evp 10,27,-24,-42,3,-37,32767,-29,-29,-24,-47,-16,-49,-142,548,531,29993,29994,29995,29996]} 1. e4 {[%emt 0:00:00]} e6 {[%emt 0:00:04]} 2. d4 {[%emt 0:00:00]} d5 {[%emt 0:00:26]} 3. Nc3 {[%emt 0:00:06]} Nf6 {[%emt 0:00:54]} 4. e5 {[%emt 0:00:16]} Nfd7 {[%emt 0:01:16]} 5. Nf3 {[%emt 0:07:21]} c5 {[%emt 0:02:06]} 6. Bf4 {[%emt 0:03:53]} a6 {[%emt 0:06:35]} 7. Be2 {[%emt 0:02:51]} Nc6 {[%emt 0:00:49]} 8. dxc5 {[%emt 0:01:03]} Bxc5 {[%emt 0:00:25]} 9. O-O {[%emt 0:01:00]} Qc7 {[%emt 0:02:27]} 10. Re1 {[%emt 0:00:42]} O-O {[%emt 0:06:40]} ({Don't blunder} 10... Ncxe5 $2 11. Nxe5 O-O 12. Bg4 $18) 11. Bd3 {[%emt 0:01:30] [#]} ({White should try} 11. Na4 $15) 11... Qb6 $2 {[%emt 0:02:53] [#]} (11... f6 $1 $17 {keeps the pressure on.} 12. Be3 Ncxe5 13. Bxc5 Qxc5) 12. Bxh7+ $1 {[%emt 0:00:32]} Kxh7 {[%emt 0:04:48] [#]} 13. Ng5+ {[%emt 0:00:09]} Kg6 {[%emt 0:00:13]} 14. Qd3+ {[%emt 0:02:53]} f5 {[%emt 0:05:41]} 15. exf6+ {[%emt 0:00:11]} Kxf6 {[%emt 0:00:03]} 16. Rxe6# {[%emt 0:00:11]} 1-0